fUSD/lending_fUSD_20250623
["ID","MTS","AMOUNT","RATE_DAILY","PERIOD"]
[367095439,1750654310434,-583.16,0.00033972,7]
[367095440,1750654310444,-1299.08,0.00033972,7]
[367095441,1750654310453,-490.0,0.00033972,7]
[367095442,1750654310462,-490.0,0.00033972,7]
[367095443,1750654310472,-1851.05,0.00033972,7]
[367095444,1750654310481,-2155.57,0.00033972,7]
[367095445,1750654310491,-490.0,0.00033972,7]
[367095446,1750654310500,-2180.36,0.00033972,7]
[367095447,1750654310510,-1693.56,0.00033972,7]
[367095448,1750654310519,-1562.37,0.00033972,7]
[367095449,1750654310528,-490.0,0.00033972,7]
[367095450,1750654310537,-2056.32,0.00033972,7]
[367095451,1750654310547,-974.07,0.00033972,7]
[367095452,1750654310556,-1733.62,0.00033972,7]
[367095453,1750654310565,-873.16,0.00033972,7]
[367095454,1750654310574,-1845.26,0.00033972,7]
[367095455,1750654310583,-647.41,0.00033972,7]
[367095456,1750654310593,-1469.24,0.00033972,7]
[367095457,1750654310602,-1326.79,0.00033972,7]
[367095458,1750654310612,-490.0,0.00033972,7]
[367095459,1750654310621,-1747.03,0.00033972,7]
[367095460,1750654310630,-1544.69,0.00033972,7]
[367095461,1750654310639,-2054.64,0.00033972,7]
[367095462,1750654310648,-490.0,0.00033972,7]
[367095463,1750654310657,-933.68,0.00033972,7]
[367095464,1750654310667,-810.39,0.00033972,7]
[367095465,1750654310677,-2500.9,0.00033972,7]
[367095466,1750654310689,-1791.95,0.00033972,7]
[367095467,1750654310699,-490.0,0.00033972,7]
[367095468,1750654310709,-4628.77,0.00033972,7]
[367095469,1750654310720,-1577.25,0.00033972,7]
[367095470,1750654310730,-490.0,0.00033972,7]
[367095471,1750654310740,-1475.64,0.00033972,7]
[367095472,1750654310750,-490.0,0.00033972,7]
[367095473,1750654310761,-946.25,0.00033972,7]
[367095474,1750654310770,-1080.2,0.00033972,7]
[367095475,1750654310780,-490.0,0.00033972,7]
[367095476,1750654310789,-473.84147003,0.00033972,7]
[367095477,1750654310798,-5581.72,0.00033972,7]
[367095478,1750654310807,-867.5,0.00033972,7]
[367095479,1750654310817,-490.0,0.00033972,7]
[367095480,1750654310826,-490.0,0.00033972,7]
[367095481,1750654310835,-1867.5,0.00033972,7]
[367095482,1750654310844,-490.0,0.00033972,7]
[367095483,1750654310853,-2817.35,0.00033972,7]
[367095484,1750654310863,-2899.48,0.00033972,7]
[367095485,1750654310872,-1251.06,0.00033972,7]
[367095486,1750654310881,-490.0,0.00033972,7]
[367095487,1750654310890,-1667.65,0.00033972,7]
[367095488,1750654310899,-494.33573594,0.00033972,7]
[367095489,1750654310908,-2082.64,0.00033972,7]
[367095490,1750654310918,-555.69104961,0.00033972,7]
[367095491,1750654310927,-1163.87,0.00033972,7]
[367095492,1750654310936,-788.59,0.00033972,7]
[367095493,1750654310946,-490.0,0.00033972,7]
[367095494,1750654310955,-490.0,0.00033972,7]
[367095495,1750654310965,-3124.09,0.00033972,7]
[367095496,1750654310974,-2165.19,0.00033972,7]
[367095497,1750654310983,-1465.7,0.00033972,7]
[367095498,1750654310993,-490.0,0.00033972,7]
[367095499,1750654311002,-490.0,0.00033972,7]
[367095500,1750654311011,-766.4,0.00033972,7]
[367095501,1750654311020,-7426.49,0.00033972,7]
[367095502,1750654311029,-13309.13,0.00033972,7]
[367095503,1750654311038,-490.0,0.00033972,7]
[367095504,1750654311049,-1901.1,0.00033972,7]
[367095505,1750654311059,-890.49,0.00033972,7]
[367095506,1750654311069,-1982.24,0.00033972,7]
[367095507,1750654311080,-504.29058198,0.00033972,7]
[367095508,1750654311089,-1885.34,0.00033972,7]
[367095509,1750654311099,-837.26,0.00033972,7]
[367095510,1750654311109,-490.0,0.00033972,7]
[367095511,1750654311302,-490.0,0.00033972,7]
[367095512,1750654311329,-490.0,0.00033972,7]
[367095513,1750654311338,-894.13,0.00033972,7]
[367095514,1750654311347,-352.28989286,0.00033972,7]
[367095515,1750654311357,-1293.41,0.00033972,7]
[367095516,1750654311366,-1694.58,0.00033972,7]
[367095517,1750654311375,-1804.56,0.00033972,7]
[367095518,1750654311384,-490.0,0.00033972,7]
[367095519,1750654311394,-34343.81,0.00033972,7]
[367095520,1750654311403,-605.23,0.00033972,7]
[367095521,1750654311412,-490.0,0.00033972,7]
[367095522,1750654311421,-490.0,0.00033972,7]
[367095523,1750654311430,-490.0,0.00033972,7]
[367095524,1750654311439,-1888.3,0.00033972,7]
[367095525,1750654311449,-490.0,0.00033972,7]
[367095526,1750654311459,-8898.26,0.00033972,7]
[367095527,1750654311468,-490.0,0.00033972,7]
[367095528,1750654311477,-490.0,0.00033972,7]
[367095529,1750654311486,-1935.47,0.00033972,7]
[367095530,1750654311495,-1976.08,0.00033972,7]
[367095531,1750654311505,-1276.19,0.00033972,7]
[367095532,1750654311515,-490.0,0.00033972,7]
[367095533,1750654311524,-667.82,0.00033972,7]
[367095534,1750654311533,-490.0,0.00033972,7]
[367095535,1750654311542,-490.0,0.00033972,7]
[367095536,1750654311552,-822.02,0.00033972,7]
[367095537,1750654311561,-490.0,0.00033972,7]
[367095538,1750654311571,-2029.59,0.00033972,7]
[367095539,1750654311580,-1009.86,0.00033972,7]
[367095540,1750654311589,-2172.01,0.00033972,7]
[367095541,1750654311599,-490.0,0.00033972,7]
[367095542,1750654311608,-490.0,0.00033972,7]
[367095543,1750654311618,-490.0,0.00033972,7]
[367095544,1750654311627,-490.0,0.00033972,7]
[367095545,1750654311637,-3430.29,0.00033972,7]
[367095546,1750654311647,-490.0,0.00033972,7]
[367095547,1750654311656,-2151.74,0.00033972,7]
[367095548,1750654311666,-1837.54,0.00033972,7]
[367095549,1750654311675,-5336.48,0.00033972,7]
[367095550,1750654311684,-490.0,0.00033972,7]
[367095551,1750654311693,-490.0,0.00033972,7]
[367095552,1750654311702,-575.19,0.00033972,7]
[367095553,1750654311712,-490.0,0.00033972,7]
[367095554,1750654311721,-490.0,0.00033972,7]
[367095555,1750654311730,-295.91668367,0.00033972,7]
[367095556,1750654311739,-1755.72,0.00033972,7]
[367095557,1750654311749,-2004.11,0.00033972,7]
[367095558,1750654311758,-490.0,0.00033972,7]
[367095559,1750654311768,-6398.29,0.00033972,7]
[367095560,1750654311778,-4081.92,0.00033972,7]
[367095561,1750654311789,-490.0,0.00033972,7]
[367095562,1750654311798,-1446.95,0.00033972,7]
[367095563,1750654311807,-1654.17,0.00033972,7]
[367095564,1750654311817,-490.0,0.00033972,7]
[367095565,1750654311826,-490.0,0.00033972,7]
[367095566,1750654311835,-726.07,0.00033972,7]
[367095567,1750654311844,-3499.05,0.00033972,7]
[367095568,1750654311853,-490.0,0.00033972,7]
[367095569,1750654311862,-490.0,0.00033972,7]
[367095570,1750654311871,-1944.72,0.00033972,7]
[367095571,1750654311880,-2288.39,0.00033972,7]
[367095572,1750654311889,-1063.36,0.00033972,7]
[367095573,1750654311899,-5939.24,0.00033972,7]
[367095574,1750654311908,-2007.27,0.00033972,7]
[367095575,1750654311917,-1658.54,0.00033972,7]
[367095576,1750654311927,-1481.12,0.00033972,7]
[367095577,1750654311936,-490.0,0.00033972,7]
[367095578,1750654311944,-1329.63,0.00033972,7]
[367095579,1750654311954,-490.0,0.00033972,7]
[367095580,1750654311964,-997.29,0.00033972,7]
[367095581,1750654311973,-490.0,0.00033972,7]
[367095582,1750654311982,-1839.68,0.00033972,7]
[367095583,1750654311991,-9688.5,0.00033972,7]
[367095584,1750654312000,-679.69,0.00033972,7]
[367095585,1750654312009,-2201.94,0.00033972,7]
[367095586,1750654312018,-714.74,0.00033972,7]
[367095587,1750654312027,-1145.73,0.00033972,7]
[367095588,1750654312037,-2029.14,0.00033972,7]
[367095589,1750654312046,-877.52,0.00033972,7]
[367095590,1750654312055,-1253.69,0.00033972,7]
[367095591,1750654312065,-1877.23,0.00033972,7]
[367095592,1750654312074,-1815.85,0.00033972,7]
[367095593,1750654312082,-490.0,0.00033972,7]
[367095594,1750654312091,-3323.77,0.00033972,7]
[367095595,1750654312100,-1375.9,0.00033972,7]
[367095596,1750654312110,-3752.75,0.00033972,7]
[367095597,1750654312121,-490.0,0.00033972,7]
[367095598,1750654312133,-3428.92,0.00033972,7]
[367095599,1750654312143,-1562.34,0.00033972,7]
[367095600,1750654312153,-1888.93,0.00033972,7]
[367095601,1750654312162,-1151.59,0.00033972,2]
[367095602,1750654312172,-490.0,0.00033972,7]
[367095603,1750654312181,-490.0,0.00033972,7]
[367095604,1750654312190,-490.0,0.00033972,7]
[367095605,1750654312200,-3581.54,0.00033972,7]
[367095606,1750654312209,-316.76812827,0.00033972,7]
[367095607,1750654312219,-490.0,0.00033972,7]
[367095608,1750654312229,-1951.48,0.00033972,7]
[367095609,1750654312239,-2006.4,0.00033972,7]
[367095610,1750654312248,-490.0,0.00033972,7]
[367095611,1750654312258,-686.46,0.00033972,7]
[367095612,1750654312268,-366.08294946,0.00033972,7]
[367095613,1750654312277,-879.8,0.00033972,7]
[367095614,1750654312287,-8055.62,0.00033972,7]
[367095615,1750654312297,-748.7,0.00033972,7]
[367095616,1750654312307,-1483.38,0.00033972,7]
[367095617,1750654312316,-543.72,0.00033972,7]
[367095618,1750654312326,-842.79,0.00033972,7]
[367095619,1750654312335,-2873.68,0.00033972,7]
[367095620,1750654312344,-490.0,0.00033972,7]
[367095621,1750654312354,-490.0,0.00033972,7]
[367095622,1750654312363,-490.0,0.00033972,7]
[367095623,1750654312372,-1490.22,0.00033972,7]
[367095624,1750654312382,-490.0,0.00033972,7]
[367095625,1750654312391,-490.0,0.00033972,7]
[367095626,1750654312401,-490.0,0.00033972,7]
[367095627,1750654312410,-1488.74,0.00033972,7]
[367095628,1750654312420,-490.0,0.00033972,7]
[367095629,1750654312429,-990.57,0.00033972,7]
[367095630,1750654312438,-161.0,0.00034,2]
[367095631,1750654312448,-200.45,0.00034,2]
[367095632,1750654312458,-2110.0,0.00034,2]
[367095633,1750654312467,-976.96,0.00034,2]
[367095634,1750654312478,-2817.06862694,0.00034,120]
[367095635,1750654312487,-94787.39278578,0.00034,2]
[367095636,1750654312497,-2501.014492,0.00034,17]
[367095637,1750654312507,-512.60180694,0.00034003,30]
[367095638,1750654312517,-536.37729506,0.00034009,2]
[367095639,1750654312526,-501.82110259,0.00034021,5]
[367095640,1750654312536,-1000.0,0.00034021,5]
[367095641,1750654312546,-5000.0,0.00034045,2]
[367095642,1750654312556,-223.47399523,0.00034055,30]
[367095643,1750654312566,-160.41,0.00034079,2]
[367095644,1750654312575,-167.60549643,0.00034082,30]
[367095645,1750654312585,-896.56704755,0.00034105,2]
[367095646,1750654312594,-223.47399523,0.0003411,30]
[367095647,1750654312604,-223.47399523,0.0003411,30]
[367095648,1750654312613,-223.47399523,0.0003411,30]
[367095649,1750654312622,-168.0,0.0003414,2]
[367095650,1750654312632,-162.49570099,0.00034146,2]
[367095651,1750654312641,-150.5,0.0003417,120]
[367095652,1750654312651,-164.59,0.0003417,120]
[367095653,1750654312660,-150.5,0.0003418,120]
[367095654,1750654312670,-150.5,0.0003419,120]
[367095655,1750654312680,-223.47399523,0.00034192,30]
[367095656,1750654312699,-362.07280333,0.00034212,6]
[367095657,1750654312715,-398.0,0.00034232,7]
[367095658,1750654312734,-25000.0,0.00034242,2]
[367095659,1750654312753,-195.81,0.00034245,2]
[367095660,1750654312768,-1329.282372,0.00034246,7]
[367095661,1750654312786,-6070.115518,0.00034246,7]
[367095662,1750654312805,-2875.886496,0.00034246,7]
[367095663,1750654312823,-264.506663,0.00034246,7]
[367095664,1750654312842,-151.073014,0.00034246,7]
[367095665,1750654312860,-2000.0,0.00034246,120]
[367095666,1750654312877,-1144.6594374,0.00034246,120]
[367095667,1750654312890,-508.48,0.00034246,7]
[367095668,1750654312909,-490.0,0.00034246,7]
[367095669,1750654312922,-656.58,0.00034246,7]
[367095670,1750654312941,-490.0,0.00034246,7]
[367095671,1750654312958,-490.0,0.00034246,7]
[367095672,1750654312972,-738.78,0.00034246,7]
[367095673,1750654312987,-564.19,0.00034246,7]
[367095674,1750654313002,-490.0,0.00034246,7]
[367095675,1750654313017,-490.0,0.00034246,7]
[367095676,1750654313031,-490.0,0.00034246,7]
[367095677,1750654313046,-690.65,0.00034246,7]
[367095678,1750654313060,-490.0,0.00034246,7]
[367095679,1750654313075,-807.71,0.00034246,7]
[367095680,1750654313090,-490.0,0.00034246,7]
[367095681,1750654313106,-490.0,0.00034246,7]
[367095682,1750654313121,-151.476984,0.00034246,7]
[367095683,1750654313139,-490.0,0.00034246,7]
[367095684,1750654313154,-490.0,0.00034246,7]
[367095685,1750654313169,-1000.0,0.00034246,7]
[367095686,1750654313184,-805.72,0.00034246,7]
[367095687,1750654313199,-490.0,0.00034246,7]
[367095688,1750654313214,-490.0,0.00034246,7]
[367095689,1750654313229,-490.0,0.00034246,7]
[367095690,1750654313244,-1202.28,0.00034246,7]
[367095691,1750654313259,-490.0,0.00034246,7]
[367095692,1750654313274,-490.0,0.00034246,7]
[367095693,1750654313289,-490.0,0.00034246,7]
[367095694,1750654313305,-377.9494786,0.00034246,7]
[367095695,1750654313320,-542.83,0.00034246,7]
[367095696,1750654313335,-907.09,0.00034246,7]
[367095697,1750654313350,-490.0,0.00034246,7]
[367095698,1750654313365,-490.0,0.00034246,7]
[367095699,1750654313380,-490.0,0.00034246,7]
[367095700,1750654313396,-778.99,0.00034246,7]
[367095701,1750654313411,-611.99,0.00034246,7]
[367095702,1750654313427,-515.65,0.00034246,7]
[367095703,1750654313442,-155.146569,0.00034246,7]
[367095704,1750654313458,-1124.48,0.00034246,7]
[367095705,1750654313473,-307.15577379,0.00034246,7]
[367095706,1750654313488,-326.11702884,0.00034246,7]
[367095707,1750654313502,-490.0,0.00034246,7]
[367095708,1750654313518,-333.12635855,0.00034246,7]
[367095709,1750654313533,-1085.93,0.00034246,7]
[367095710,1750654313548,-976.4,0.00034246,7]
[367095711,1750654313563,-490.0,0.00034246,7]
[367095712,1750654313578,-490.0,0.00034246,7]
[367095713,1750654313594,-490.0,0.00034246,7]
[367095714,1750654313609,-678.6,0.00034246,7]
[367095715,1750654313624,-746.82,0.00034246,7]
[367095716,1750654313638,-490.0,0.00034246,7]
[367095717,1750654313654,-1279.39,0.00034246,7]
[367095718,1750654313669,-720.74,0.00034246,7]
[367095719,1750654313685,-586.39,0.00034246,7]
[367095720,1750654313702,-1092.41,0.00034246,7]
[367095721,1750654313717,-490.0,0.00034246,7]
[367095722,1750654313732,-490.0,0.00034246,7]
[367095723,1750654313747,-983.31,0.00034246,7]
[367095724,1750654313762,-329.05918355,0.00034246,7]
[367095725,1750654313777,-654.35,0.00034246,7]
[367095726,1750654313792,-490.0,0.00034246,7]
[367095727,1750654313807,-490.0,0.00034246,7]
[367095728,1750654313823,-490.0,0.00034246,7]
[367095729,1750654313838,-462.56616175,0.00034246,7]
[367095730,1750654313853,-490.0,0.00034246,7]
[367095731,1750654313869,-870.42,0.00034246,7]
[367095732,1750654313884,-490.0,0.00034246,7]
[367095733,1750654313900,-491.57,0.00034246,7]
[367095734,1750654313915,-490.0,0.00034246,7]
[367095735,1750654313931,-490.0,0.00034246,7]
[367095736,1750654313947,-490.0,0.00034246,7]
[367095737,1750654313963,-264.506664,0.00034246,7]
[367095738,1750654313978,-490.0,0.00034246,7]
[367095739,1750654313993,-317.36258085,0.00034246,7]
[367095740,1750654314008,-544.93,0.00034246,7]
[367095741,1750654314024,-490.0,0.00034246,7]
[367095742,1750654314040,-490.0,0.00034246,7]
[367095743,1750654314055,-490.0,0.00034246,7]
[367095744,1750654314070,-490.0,0.00034246,7]
[367095745,1750654314083,-151.073013,0.00034246,7]
[367095746,1750654314098,-571.98,0.00034246,7]
[367095747,1750654314112,-490.0,0.00034246,7]
[367095748,1750654314130,-490.0,0.00034246,7]
[367095749,1750654314151,-490.0,0.00034246,7]
[367095750,1750654314166,-819.33,0.00034246,7]
[367095751,1750654314181,-705.49,0.00034246,7]
[367095752,1750654314195,-490.0,0.00034246,7]
[367095753,1750654314220,-490.0,0.00034246,7]
[367095754,1750654314235,-490.0,0.00034246,7]
[367095755,1750654314251,-490.0,0.00034246,7]
[367095756,1750654314265,-1082.01,0.00034246,7]
[367095757,1750654314281,-309.65454389,0.00034246,7]
[367095758,1750654314297,-490.0,0.00034246,7]
[367095759,1750654314312,-490.0,0.00034246,7]
[367095760,1750654314327,-841.29,0.00034246,7]
[367095761,1750654314342,-875.21,0.00034246,7]
[367095762,1750654314356,-490.0,0.00034246,7]
[367095763,1750654314371,-490.0,0.00034246,7]
[367095764,1750654314386,-500.0,0.00034246,7]
[367095765,1750654314402,-638.96,0.00034246,7]
[367095766,1750654314417,-490.0,0.00034246,7]
[367095767,1750654314431,-1706.22,0.00034246,7]
[367095768,1750654314446,-490.0,0.00034246,7]
[367095769,1750654314462,-490.0,0.00034246,7]
[367095770,1750654314476,-490.0,0.00034246,7]
[367095771,1750654314490,-490.0,0.00034246,7]
[367095772,1750654314505,-582.29029539,0.00034246,7]
[367095773,1750654314521,-794.16,0.00034246,7]
[367095774,1750654314535,-2369.16,0.00034246,7]
[367095775,1750654314550,-1745.48,0.00034246,7]
[367095776,1750654314566,-567.29,0.00034246,7]
[367095777,1750654314581,-498.52,0.00034246,7]
[367095778,1750654314596,-490.0,0.00034246,7]
[367095779,1750654314610,-490.0,0.00034246,7]
[367095780,1750654314625,-664.52,0.00034246,7]
[367095781,1750654314640,-1705.17,0.00034246,7]
[367095782,1750654314654,-490.0,0.00034246,7]
[367095783,1750654314669,-490.0,0.00034246,7]
[367095784,1750654314684,-490.0,0.00034246,7]
[367095785,1750654314700,-490.0,0.00034246,7]
[367095786,1750654314715,-490.0,0.00034246,7]
[367095787,1750654314729,-902.42,0.00034246,7]
[367095788,1750654314744,-1071.38,0.00034246,7]
[367095789,1750654314760,-490.0,0.00034246,7]
[367095790,1750654314774,-490.0,0.00034246,7]
[367095791,1750654314789,-490.0,0.00034246,7]
[367095792,1750654314804,-490.0,0.00034246,7]
[367095793,1750654314819,-490.0,0.00034246,7]
[367095794,1750654314834,-564.01847303,0.00034246,7]
[367095795,1750654314848,-490.0,0.00034246,7]
[367095796,1750654315099,-237.46646475,0.00034246,7]
[367095797,1750654315156,-715.68,0.00034246,7]
[367095798,1750654315166,-752.0,0.00034246,7]
[367095799,1750654315176,-490.0,0.00034246,7]
[367095800,1750654315186,-840.28,0.00034246,7]
[367095801,1750654315195,-490.0,0.00034246,7]
[367095802,1750654315205,-490.0,0.00034246,7]
[367095803,1750654315215,-966.39,0.00034246,7]
[367095804,1750654315224,-1121.31,0.00034246,7]
[367095805,1750654315234,-207.66371052,0.00034246,7]
[367095806,1750654315244,-490.0,0.00034246,7]
[367095807,1750654315253,-837.18,0.00034246,7]
[367095808,1750654315263,-519.27,0.00034246,7]
[367095809,1750654315272,-490.0,0.00034246,7]
[367095810,1750654315281,-1027.42,0.00034246,7]
[367095811,1750654315291,-490.0,0.00034246,7]
[367095812,1750654315300,-821.64,0.00034246,7]
[367095813,1750654315309,-490.0,0.00034246,7]
[367095814,1750654315319,-1429.86,0.00034246,7]
[367095815,1750654315328,-281.75851069,0.00034246,7]
[367095816,1750654315337,-778.94,0.00034246,7]
[367095817,1750654315346,-490.0,0.00034246,7]
[367095818,1750654315355,-923.75,0.00034246,7]
[367095819,1750654315364,-1414.38,0.00034246,7]
[367095820,1750654315373,-840.56,0.00034246,7]
[367095821,1750654315382,-874.75,0.00034246,7]
[367095822,1750654315391,-1286.76,0.00034246,7]
[367095823,1750654315400,-649.32,0.00034246,7]
[367095824,1750654315409,-490.0,0.00034246,7]
[367095825,1750654315418,-827.4,0.00034246,7]
[367095826,1750654315427,-490.0,0.00034246,7]
[367095827,1750654315437,-1558.33,0.00034246,7]
[367095828,1750654315447,-877.6,0.00034246,7]
[367095829,1750654315456,-699.47,0.00034246,7]
[367095830,1750654315466,-490.0,0.00034246,7]
[367095831,1750654315475,-531.95,0.00034246,7]
[367095832,1750654315484,-1480.2,0.00034246,7]
[367095833,1750654315494,-509.79,0.00034246,7]
[367095834,1750654315505,-1073.47,0.00034246,7]
[367095835,1750654315515,-264.73795292,0.00034246,7]
[367095836,1750654315526,-490.0,0.00034246,7]
[367095837,1750654315536,-498.65207558,0.00034246,7]
[367095838,1750654315546,-1316.77,0.00034246,7]
[367095839,1750654315557,-490.0,0.00034246,7]
[367095840,1750654315566,-490.0,0.00034246,7]
[367095841,1750654315575,-490.0,0.00034246,7]
[367095842,1750654315584,-490.0,0.00034246,7]
[367095843,1750654315593,-490.0,0.00034246,7]
[367095844,1750654315603,-786.27,0.00034246,7]
[367095845,1750654315611,-1918.05,0.00034246,7]
[367095846,1750654315620,-660.43,0.00034246,7]
[367095847,1750654315629,-490.0,0.00034246,2]
[367095848,1750654315638,-490.0,0.00034246,7]
[367095849,1750654315648,-922.92,0.00034246,7]
[367095850,1750654315658,-490.0,0.00034246,7]
[367095851,1750654315668,-490.0,0.00034246,7]
[367095852,1750654315677,-490.0,0.00034246,7]
[367095853,1750654315685,-490.0,0.00034246,7]
[367095854,1750654315695,-518.81,0.00034246,7]
[367095855,1750654315704,-1499.72,0.00034246,7]
[367095856,1750654315713,-490.0,0.00034246,7]
[367095857,1750654315723,-490.0,0.00034246,7]
[367095858,1750654315732,-490.0,0.00034246,7]
[367095859,1750654315740,-620.58,0.00034246,7]
[367095860,1750654315749,-490.0,0.00034246,7]
[367095861,1750654315758,-490.0,0.00034246,7]
[367095862,1750654315767,-490.0,0.00034246,7]
[367095863,1750654315777,-668.13,0.00034246,7]
[367095864,1750654315786,-490.0,0.00034246,7]
[367095865,1750654315795,-1231.68,0.00034246,7]
[367095866,1750654315804,-1649.07,0.00034246,7]
[367095867,1750654315813,-490.0,0.00034246,7]
[367095868,1750654315822,-442.36,0.00034246,7]
[367095869,1750654315832,-927.67,0.00034246,7]
[367095870,1750654315841,-490.0,0.00034246,7]
[367095871,1750654315851,-490.0,0.00034246,7]
[367095872,1750654315860,-1625.2,0.00034246,7]
[367095873,1750654315869,-929.4,0.00034246,7]
[367095874,1750654315879,-490.0,0.00034246,7]
[367095875,1750654315889,-490.0,0.00034246,7]
[367095876,1750654315899,-507.38,0.00034246,7]
[367095877,1750654315909,-490.0,0.00034246,7]
[367095878,1750654315918,-155.54486164,0.00034246,7]
[367095879,1750654315929,-1065.71,0.00034246,7]
[367095880,1750654315939,-748.91,0.00034246,7]
[367095881,1750654315949,-793.2,0.00034246,7]
[367095882,1750654315961,-1119.83,0.00034246,7]
[367095883,1750654315970,-665.81,0.00034246,7]
[367095884,1750654315981,-954.38,0.00034246,7]
[367095885,1750654315992,-1658.52,0.00034246,7]
[367095886,1750654316003,-490.0,0.00034246,7]
[367095887,1750654316013,-1574.53,0.00034246,7]
[367095888,1750654316022,-490.0,0.00034246,7]
[367095889,1750654316031,-1020.13,0.00034246,7]
[367095890,1750654316040,-1337.82,0.00034246,7]
[367095891,1750654316051,-1108.59,0.00034246,7]
[367095892,1750654316061,-490.0,0.00034246,7]
[367095893,1750654316070,-1739.69,0.00034246,7]
[367095894,1750654316080,-693.49,0.00034246,7]
[367095895,1750654316090,-677.97,0.00034246,7]
[367095896,1750654316100,-232.34131014,0.00034246,7]
[367095897,1750654316110,-490.0,0.00034246,7]
[367095898,1750654316120,-1625.39,0.00034246,7]
[367095899,1750654316130,-490.0,0.00034246,7]
[367095900,1750654316140,-490.0,0.00034246,7]
[367095901,1750654316152,-751.42,0.00034246,7]
[367095902,1750654316162,-578.59,0.00034246,7]
[367095903,1750654316172,-490.0,0.00034246,7]
[367095904,1750654316181,-873.17,0.00034246,7]
[367095905,1750654316191,-155.14657,0.00034246,7]
[367095906,1750654316200,-490.0,0.00034246,7]
[367095907,1750654316211,-490.0,0.00034246,7]
[367095908,1750654316220,-1404.84,0.00034246,7]
[367095909,1750654316229,-490.0,0.00034246,7]
[367095910,1750654316239,-1497.55,0.00034246,7]
[367095911,1750654316248,-692.63,0.00034246,7]
[367095912,1750654316257,-490.0,0.00034246,7]
[367095913,1750654316267,-202.66171043,0.00034246,7]
[367095914,1750654316276,-355.52,0.00034246,7]
[367095915,1750654316285,-490.0,0.00034246,7]
[367095916,1750654316295,-490.0,0.00034246,7]
[367095917,1750654316304,-622.94,0.00034246,7]
[367095918,1750654316315,-960.94,0.00034246,7]
[367095919,1750654316325,-542.88,0.00034246,7]
[367095920,1750654316335,-1980.47,0.00034246,7]
[367095921,1750654316344,-1621.55,0.00034246,7]
[367095922,1750654316354,-264.506663,0.00034246,7]
[367095923,1750654316363,-490.0,0.00034246,7]
[367095924,1750654316373,-554.34,0.00034246,7]
[367095925,1750654316383,-490.0,0.00034246,7]
[367095926,1750654316392,-2875.33,0.00034246,7]
[367095927,1750654316401,-991.86,0.00034246,7]
[367095928,1750654316411,-1359.95,0.00034246,7]
[367095929,1750654316420,-1686.06,0.00034246,7]
[367095930,1750654316430,-533.92,0.00034246,7]
[367095931,1750654316439,-1032.12,0.00034246,7]
[367095932,1750654316449,-964.02,0.00034246,7]
[367095933,1750654316458,-490.0,0.00034246,7]
[367095934,1750654316468,-2019.71,0.00034246,7]
[367095935,1750654316478,-151.282994,0.00034246,7]
[367095936,1750654316487,-510.24,0.00034246,7]
[367095937,1750654316497,-490.0,0.00034246,7]
[367095938,1750654316507,-490.0,0.00034246,7]